[Event "Late-Titled-Tuesday-Blitz-January-23-2024"]
[Site "Chess.com"]
[Date "2024.01.23"]
[Round "8"]
[White "falzehope0"]
[Black "rdarruda"]
[Result "1-0"]
[WhiteElo "2417"]
[BlackElo "2515"]
[TimeControl "180+1"]
[EndTime "15:23:46 PST"]
[Termination "falzehope0 won by resignation"]

1. d4 {[%clk 0:03:00.9]} 1... Nf6 {[%clk 0:02:56.3]} 2. e3 {[%clk 0:03:01]} 2...
d6 {[%clk 0:02:55.7]} 3. Bd3 {[%clk 0:03:00.8]} 3... Nbd7 {[%clk 0:02:54.6]} 4.
f4 {[%clk 0:03:00.6]} 4... e5 {[%clk 0:02:54.6]} 5. Ne2 {[%clk 0:03:00.1]} 5...
c6 {[%clk 0:02:52.5]} 6. O-O {[%clk 0:02:58.3]} 6... Be7 {[%clk 0:02:52.7]} 7.
Ng3 {[%clk 0:02:58.2]} 7... g6 {[%clk 0:02:49.8]} 8. c3 {[%clk 0:02:56.1]} 8...
O-O {[%clk 0:02:47.6]} 9. Nd2 {[%clk 0:02:52.6]} 9... Re8 {[%clk 0:02:45.5]} 10.
Kh1 {[%clk 0:02:51.9]} 10... Qc7 {[%clk 0:02:45.5]} 11. Qc2 {[%clk 0:02:50.7]}
11... Nf8 {[%clk 0:02:40.5]} 12. fxe5 {[%clk 0:02:49.1]} 12... dxe5 {[%clk
0:02:39.5]} 13. Nc4 {[%clk 0:02:49.2]} 13... Ng4 {[%clk 0:02:31.9]} 14. h3
{[%clk 0:02:35.7]} 14... exd4 {[%clk 0:02:30.2]} 15. hxg4 {[%clk 0:02:28.6]}
15... Qxg3 {[%clk 0:02:30]} 16. exd4 {[%clk 0:02:27.1]} 16... Bxg4 {[%clk
0:02:27.8]} 17. Ne5 {[%clk 0:02:17.3]} 17... Bd6 {[%clk 0:02:23.7]} 18. Bf4
{[%clk 0:01:51.3]} 18... Qh4+ {[%clk 0:02:23.7]} 19. Kg1 {[%clk 0:01:50.6]}
19... Be6 {[%clk 0:02:24.3]} 20. Qd2 {[%clk 0:01:34]} 20... Qd8 {[%clk
0:02:05.8]} 21. Qf2 {[%clk 0:01:22]} 21... f5 {[%clk 0:02:04.2]} 22. Rae1 {[%clk
0:01:16.1]} 22... Qc7 {[%clk 0:01:58.6]} 23. Bb1 {[%clk 0:01:05.9]} 23... Nd7
{[%clk 0:01:57.4]} 24. Nxd7 {[%clk 0:00:58]} 24... Bxd7 {[%clk 0:01:51.9]} 25.
Rxe8+ {[%clk 0:00:44.7]} 25... Rxe8 {[%clk 0:01:50.3]} 26. Bh6 {[%clk
0:00:42.5]} 26... Bh2+ {[%clk 0:01:48.1]} 27. Kh1 {[%clk 0:00:42.3]} 27... Bg3
{[%clk 0:01:48.6]} 28. Qf3 {[%clk 0:00:36.1]} 28... Be6 {[%clk 0:01:45.5]} 29.
Bc2 {[%clk 0:00:34.4]} 29... Bd5 {[%clk 0:01:43.2]} 30. Bb3 {[%clk 0:00:34]}
30... Bxb3 {[%clk 0:01:42.5]} 31. axb3 {[%clk 0:00:34.9]} 31... Re1 {[%clk
0:01:30.4]} 32. Rxe1 {[%clk 0:00:30.2]} 32... Bxe1 {[%clk 0:01:31.3]} 33. Qe2
{[%clk 0:00:28.1]} 33... Kf7 {[%clk 0:01:01.2]} 34. Qxe1 {[%clk 0:00:22.2]} 1-0

[Event "Late-Titled-Tuesday-Blitz-January-23-2024"]
[Site "Chess.com"]
[Date "2024.01.23"]
[Round "8"]
[White "grzechu96"]
[Black "annasargsyan_m"]
[Result "1-0"]
[WhiteElo "2721"]
[BlackElo "2532"]
[TimeControl "180+1"]
[EndTime "15:23:48 PST"]
[Termination "grzechu96 won by resignation"]

1. e4 {[%clk 0:03:00.9]} 1... c6 {[%clk 0:02:56.1]} 2. d4 {[%clk 0:03:00.1]}
2... d5 {[%clk 0:02:57]} 3. e5 {[%clk 0:03:00.2]} 3... Bf5 {[%clk 0:02:55.7]} 4.
c4 {[%clk 0:02:53.4]} 4... e6 {[%clk 0:02:55.6]} 5. Nc3 {[%clk 0:02:49.8]} 5...
Ne7 {[%clk 0:02:55.1]} 6. a3 {[%clk 0:02:49.2]} 6... Nd7 {[%clk 0:02:54.7]} 7.
c5 {[%clk 0:02:40.8]} 7... b6 {[%clk 0:02:51.5]} 8. b4 {[%clk 0:02:40.9]} 8...
a5 {[%clk 0:02:52]} 9. Be3 {[%clk 0:02:37.1]} 9... axb4 {[%clk 0:02:50.5]} 10.
axb4 {[%clk 0:02:38]} 10... bxc5 {[%clk 0:02:51]} 11. bxc5 {[%clk 0:02:38]}
11... Bg6 {[%clk 0:02:51.2]} 12. Nf3 {[%clk 0:02:24.3]} 12... Nf5 {[%clk
0:02:51.1]} 13. Be2 {[%clk 0:02:20.8]} 13... Be7 {[%clk 0:02:42.8]} 14. O-O
{[%clk 0:02:20.4]} 14... O-O {[%clk 0:02:43.4]} 15. Qd2 {[%clk 0:02:18]} 15...
Qc7 {[%clk 0:02:39]} 16. h3 {[%clk 0:02:02.6]} 16... h6 {[%clk 0:02:38.5]} 17.
Bf4 {[%clk 0:01:59.7]} 17... Qb7 {[%clk 0:02:35.7]} 18. g4 {[%clk 0:01:11]}
18... Nh4 {[%clk 0:02:33.7]} 19. Nxh4 {[%clk 0:01:11.2]} 19... Bxh4 {[%clk
0:02:34.6]} 20. Be3 {[%clk 0:01:11.5]} 20... Rxa1 {[%clk 0:02:30.7]} 21. Rxa1
{[%clk 0:01:10.9]} 21... Rb8 {[%clk 0:02:31.6]} 22. Bd3 {[%clk 0:01:06.3]} 22...
Nf8 {[%clk 0:02:20.2]} 23. f4 {[%clk 0:01:00.2]} 23... Qb2 {[%clk 0:02:12.9]}
24. Qxb2 {[%clk 0:00:57]} 24... Rxb2 {[%clk 0:02:12]} 25. Bxg6 {[%clk
0:00:57.2]} 25... Nxg6 {[%clk 0:02:11.4]} 26. Ra6 {[%clk 0:00:54.1]} 26... Rb3
{[%clk 0:01:59.8]} 27. Bd2 {[%clk 0:00:54.3]} 27... Nxf4 {[%clk 0:01:56.6]} 28.
Rxc6 {[%clk 0:00:54.6]} 28... Nxh3+ {[%clk 0:01:55.6]} 29. Kf1 {[%clk
0:00:53.4]} 29... Ng5 {[%clk 0:01:52.1]} 30. Ke2 {[%clk 0:00:51.3]} 30... Nh3
{[%clk 0:01:30.4]} 31. Rb6 {[%clk 0:00:47]} 31... Rxb6 {[%clk 0:00:41.6]} 32.
cxb6 {[%clk 0:00:47.9]} 32... Bd8 {[%clk 0:00:41.9]} 33. b7 {[%clk 0:00:48.1]}
33... Bc7 {[%clk 0:00:41.9]} 34. Nb5 {[%clk 0:00:48.7]} 34... Bb8 {[%clk
0:00:41.5]} 35. Bb4 {[%clk 0:00:49.4]} 1-0

[Event "Late-Titled-Tuesday-Blitz-January-23-2024"]
[Site "Chess.com"]
[Date "2024.01.23"]
[Round "8"]
[White "smotherhubbard"]
[Black "Defenstrator"]
[Result "0-1"]
[WhiteElo "2342"]
[BlackElo "2507"]
[TimeControl "180+1"]
[EndTime "15:23:48 PST"]
[Termination "Defenstrator won by checkmate"]

1. d4 {[%clk 0:03:00.9]} 1... e6 {[%clk 0:02:58.4]} 2. c4 {[%clk 0:02:56.8]}
2... Bb4+ {[%clk 0:02:56.5]} 3. Bd2 {[%clk 0:02:52.1]} 3... Qe7 {[%clk
0:02:55.4]} 4. e4 {[%clk 0:02:50.2]} 4... d5 {[%clk 0:02:54.4]} 5. cxd5 {[%clk
0:02:39.9]} 5... exd5 {[%clk 0:02:51.9]} 6. e5 {[%clk 0:02:40.2]} 6... Nc6
{[%clk 0:02:41.7]} 7. Nf3 {[%clk 0:02:30]} 7... Bg4 {[%clk 0:02:41.3]} 8. Nc3
{[%clk 0:02:26.6]} 8... Nxd4 {[%clk 0:02:34.8]} 9. Nxd5 {[%clk 0:01:56.5]} 9...
Nxf3+ {[%clk 0:02:25.2]} 10. gxf3 {[%clk 0:01:49.7]} 10... Qxe5+ {[%clk
0:02:25.2]} 11. Be2 {[%clk 0:01:27.4]} 11... Bxd2+ {[%clk 0:02:18.3]} 12. Qxd2
{[%clk 0:01:21.7]} 12... Bxf3 {[%clk 0:02:16.8]} 13. Nxc7+ {[%clk 0:01:19]}
13... Qxc7 {[%clk 0:02:17.6]} 14. Bxf3 {[%clk 0:01:18.9]} 14... Ne7 {[%clk
0:02:10.1]} 15. O-O {[%clk 0:01:12.4]} 15... O-O {[%clk 0:02:06.3]} 16. Rac1
{[%clk 0:01:11]} 16... Nc6 {[%clk 0:02:04.8]} 17. Rc5 {[%clk 0:01:04.5]} 17...
Rad8 {[%clk 0:02:02.7]} 18. Qc3 {[%clk 0:01:04.4]} 18... Rd6 {[%clk 0:01:53.9]}
19. Rc1 {[%clk 0:01:03.7]} 19... Rg6+ {[%clk 0:01:32.7]} 20. Bg2 {[%clk
0:00:52.3]} 20... Qf4 {[%clk 0:01:26.5]} 21. Rc2 {[%clk 0:00:25.6]} 21... Nd4
{[%clk 0:01:21.4]} 22. h3 {[%clk 0:00:20.3]} 22... Nxc2 {[%clk 0:01:14]} 23.
Qxc2 {[%clk 0:00:20]} 23... b6 {[%clk 0:01:07.9]} 24. Rf5 {[%clk 0:00:19.6]}
24... Qb4 {[%clk 0:01:04.3]} 25. Kh1 {[%clk 0:00:19.7]} 25... Re8 {[%clk
0:00:53.4]} 26. Bd5 {[%clk 0:00:17.9]} 26... Qe1+ {[%clk 0:00:49.4]} 27. Kh2
{[%clk 0:00:17.5]} 27... Qg1# {[%clk 0:00:49.4]} 0-1

[Event "Late-Titled-Tuesday-Blitz-January-23-2024"]
[Site "Chess.com"]
[Date "2024.01.23"]
[Round "8"]
[White "KacperPolOK"]
[Black "ansko1999"]
[Result "0-1"]
[WhiteElo "2502"]
[BlackElo "2711"]
[TimeControl "180+1"]
[EndTime "15:23:52 PST"]
[Termination "ansko1999 won by resignation"]

1. e4 {[%clk 0:03:00.9]} 1... e5 {[%clk 0:02:57.7]} 2. Nf3 {[%clk 0:02:59.5]}
2... Nf6 {[%clk 0:02:55.8]} 3. Nc3 {[%clk 0:02:59.3]} 3... Nc6 {[%clk
0:02:53.3]} 4. d4 {[%clk 0:02:58.5]} 4... exd4 {[%clk 0:02:53.5]} 5. Nxd4 {[%clk
0:02:59.4]} 5... Bb4 {[%clk 0:02:53.8]} 6. Nxc6 {[%clk 0:02:59.3]} 6... bxc6
{[%clk 0:02:54.5]} 7. Bd3 {[%clk 0:02:59.8]} 7... d5 {[%clk 0:02:52.2]} 8. exd5
{[%clk 0:03:00.7]} 8... O-O {[%clk 0:02:52.6]} 9. O-O {[%clk 0:03:00.6]} 9...
Bg4 {[%clk 0:02:52.4]} 10. f3 {[%clk 0:02:51.5]} 10... Bh5 {[%clk 0:02:52.5]}
11. dxc6 {[%clk 0:02:46.4]} 11... Qd4+ {[%clk 0:02:53.4]} 12. Kh1 {[%clk
0:02:45.2]} 12... Bxc3 {[%clk 0:02:53.1]} 13. bxc3 {[%clk 0:02:41.6]} 13... Qxc3
{[%clk 0:02:53.5]} 14. Bg5 {[%clk 0:02:24.9]} 14... Qxc6 {[%clk 0:02:48.1]} 15.
Qe1 {[%clk 0:02:16.9]} 15... Bg6 {[%clk 0:02:41.3]} 16. Bxg6 {[%clk 0:02:11.6]}
16... hxg6 {[%clk 0:02:42.2]} 17. Bxf6 {[%clk 0:02:11.4]} 17... gxf6 {[%clk
0:02:38.3]} 18. Qh4 {[%clk 0:01:46.1]} 18... Kg7 {[%clk 0:02:35]} 19. c4 {[%clk
0:01:43.8]} 19... Rh8 {[%clk 0:02:33.5]} 20. Qf4 {[%clk 0:01:40.2]} 20... Rh5
{[%clk 0:02:25.6]} 21. h3 {[%clk 0:01:36.1]} 21... Rc5 {[%clk 0:02:21.5]} 22.
Rac1 {[%clk 0:01:35.7]} 22... Re8 {[%clk 0:02:19.9]} 23. Rc2 {[%clk 0:01:27.3]}
23... Rb8 {[%clk 0:02:09.5]} 24. Rd1 {[%clk 0:01:26.5]} 24... Rb4 {[%clk
0:02:07.9]} 25. Rd4 {[%clk 0:01:26.2]} 25... Qa4 {[%clk 0:01:58.7]} 26. Qh4
{[%clk 0:01:04.9]} 26... Qxc2 {[%clk 0:01:48.3]} 27. Rd8 {[%clk 0:01:04.8]}
27... Qc1+ {[%clk 0:01:30]} 28. Kh2 {[%clk 0:01:04.2]} 28... Rh5 {[%clk
0:01:30.6]} 29. Qe4 {[%clk 0:00:45.9]} 29... Rg5 {[%clk 0:00:58]} 30. Qh4 {[%clk
0:00:41.9]} 30... Rxg2+ {[%clk 0:00:46.9]} 31. Kxg2 {[%clk 0:00:42.1]} 31...
Rb2+ {[%clk 0:00:47.4]} 32. Kg3 {[%clk 0:00:40.2]} 32... Qe1+ {[%clk 0:00:46.6]}
33. Kg4 {[%clk 0:00:38]} 33... f5+ {[%clk 0:00:46.6]} 34. Kg5 {[%clk 0:00:37.8]}
34... f6+ {[%clk 0:00:45.7]} 0-1

[Event "Late-Titled-Tuesday-Blitz-January-23-2024"]
[Site "Chess.com"]
[Date "2024.01.23"]
[Round "8"]
[White "Flameboard08"]
[Black "EsmeraldasAnderson03"]
[Result "1-0"]
[WhiteElo "2559"]
[BlackElo "2424"]
[TimeControl "180+1"]
[EndTime "15:23:55 PST"]
[Termination "Flameboard08 won by resignation"]

1. Na3 {[%clk 0:02:57.5]} 1... d5 {[%clk 0:02:58.8]} 2. c3 {[%clk 0:02:57.5]}
2... Nf6 {[%clk 0:02:59.2]} 3. d4 {[%clk 0:02:57.2]} 3... e6 {[%clk 0:02:59.4]}
4. f4 {[%clk 0:02:56.7]} 4... Ne4 {[%clk 0:02:58]} 5. Nf3 {[%clk 0:02:55.6]}
5... f5 {[%clk 0:02:52.7]} 6. Nc2 {[%clk 0:02:54.9]} 6... Be7 {[%clk 0:02:51.8]}
7. g3 {[%clk 0:02:53]} 7... Nd7 {[%clk 0:02:51.7]} 8. Bg2 {[%clk 0:02:53.2]}
8... Ndf6 {[%clk 0:02:52]} 9. O-O {[%clk 0:02:52.6]} 9... O-O {[%clk 0:02:52.6]}
10. Ne5 {[%clk 0:02:51.6]} 10... c5 {[%clk 0:02:50.9]} 11. e3 {[%clk 0:02:51.4]}
11... Qc7 {[%clk 0:02:49.7]} 12. Ne1 {[%clk 0:02:49.8]} 12... b6 {[%clk
0:02:49.4]} 13. N1f3 {[%clk 0:02:49.2]} 13... Ba6 {[%clk 0:02:50]} 14. Re1
{[%clk 0:02:49.8]} 14... Rac8 {[%clk 0:02:49.7]} 15. Qa4 {[%clk 0:02:44.9]}
15... Qb7 {[%clk 0:02:47.9]} 16. Bf1 {[%clk 0:02:30.2]} 16... b5 {[%clk
0:02:43.9]} 17. Qd1 {[%clk 0:02:26.7]} 17... b4 {[%clk 0:02:42.9]} 18. Bxa6
{[%clk 0:02:23.5]} 18... Qxa6 {[%clk 0:02:43.8]} 19. cxb4 {[%clk 0:02:23.8]}
19... cxb4 {[%clk 0:02:42.8]} 20. Bd2 {[%clk 0:02:18.9]} 20... Rc7 {[%clk
0:02:39.9]} 21. Qb3 {[%clk 0:02:15.7]} 21... Qb5 {[%clk 0:02:21.6]} 22. a3
{[%clk 0:01:59]} 22... Rb8 {[%clk 0:02:15.4]} 23. axb4 {[%clk 0:01:50.4]} 23...
Bxb4 {[%clk 0:02:16.3]} 24. Bxb4 {[%clk 0:01:50.8]} 24... Qxb4 {[%clk
0:02:16.6]} 25. Qxb4 {[%clk 0:01:51.7]} 25... Rxb4 {[%clk 0:02:16.9]} 26. Rec1
{[%clk 0:01:52.4]} 26... Rxc1+ {[%clk 0:02:04.1]} 27. Rxc1 {[%clk 0:01:53.3]}
27... h6 {[%clk 0:02:03.9]} 28. Ng6 {[%clk 0:01:26.1]} 28... Rxb2 {[%clk
0:01:54.4]} 29. Rc8+ {[%clk 0:01:20.2]} 29... Kh7 {[%clk 0:01:54.3]} 30. Nfe5
{[%clk 0:01:17.1]} 30... Rb1+ {[%clk 0:01:40.5]} 31. Kg2 {[%clk 0:01:15.7]}
31... Rb2+ {[%clk 0:01:31.5]} 32. Kh3 {[%clk 0:01:12.6]} 32... Nf2+ {[%clk
0:00:14.8]} 33. Kh4 {[%clk 0:01:11.8]} 33... Rb8 {[%clk 0:00:08.5]} 34. Rxb8
{[%clk 0:01:10.8]} 1-0

[Event "Late-Titled-Tuesday-Blitz-January-23-2024"]
[Site "Chess.com"]
[Date "2024.01.23"]
[Round "8"]
[White "Herman-NY"]
[Black "chegueps"]
[Result "0-1"]
[WhiteElo "2490"]
[BlackElo "2672"]
[TimeControl "180+1"]
[EndTime "15:23:56 PST"]
[Termination "chegueps won by resignation"]

1. e4 {[%clk 0:03:00.9]} 1... Nf6 {[%clk 0:02:57]} 2. e5 {[%clk 0:02:58.6]} 2...
Nd5 {[%clk 0:02:57.1]} 3. d4 {[%clk 0:02:58.8]} 3... d6 {[%clk 0:02:56.8]} 4. c4
{[%clk 0:02:59.1]} 4... Nb6 {[%clk 0:02:57]} 5. f4 {[%clk 0:02:59.5]} 5... dxe5
{[%clk 0:02:56.8]} 6. fxe5 {[%clk 0:03:00.4]} 6... c5 {[%clk 0:02:56.7]} 7. d5
{[%clk 0:02:58.8]} 7... g6 {[%clk 0:02:56.7]} 8. Bf4 {[%clk 0:02:40.7]} 8... Bg7
{[%clk 0:02:56.4]} 9. Nc3 {[%clk 0:02:25.2]} 9... e6 {[%clk 0:02:55.5]} 10. Qd2
{[%clk 0:01:45.7]} 10... exd5 {[%clk 0:02:54.5]} 11. cxd5 {[%clk 0:01:46]} 11...
O-O {[%clk 0:02:51.8]} 12. Nf3 {[%clk 0:01:34.4]} 12... Na6 {[%clk 0:02:34.1]}
13. Be2 {[%clk 0:00:50.9]} 13... Nb4 {[%clk 0:02:26.4]} 14. Rd1 {[%clk
0:00:45.4]} 14... Bf5 {[%clk 0:02:17.6]} 15. O-O {[%clk 0:00:41.6]} 15... c4
{[%clk 0:01:59]} 16. Bh6 {[%clk 0:00:17.1]} 16... Bd3 {[%clk 0:01:56.3]} 17.
Bxg7 {[%clk 0:00:16.3]} 17... Kxg7 {[%clk 0:01:57.2]} 18. d6 {[%clk 0:00:10.2]}
18... Qe8 {[%clk 0:01:48.2]} 19. a3 {[%clk 0:00:08.9]} 19... Nc6 {[%clk
0:01:48]} 20. Bxd3 {[%clk 0:00:08.2]} 20... cxd3 {[%clk 0:01:47.1]} 21. Rde1
{[%clk 0:00:06.4]} 21... Nc4 {[%clk 0:01:44.7]} 22. Qf4 {[%clk 0:00:04]} 22...
d2 {[%clk 0:01:38.9]} 23. Nxd2 {[%clk 0:00:02.8]} 23... N4xe5 {[%clk 0:01:39.5]}
24. Qf6+ {[%clk 0:00:03]} 24... Kg8 {[%clk 0:01:39.5]} 25. Nde4 {[%clk
0:00:03.9]} 25... Rd8 {[%clk 0:01:32.7]} 26. Qh4 {[%clk 0:00:02.6]} 26... f5
{[%clk 0:01:31.7]} 27. Nf6+ {[%clk 0:00:03]} 27... Rxf6 {[%clk 0:01:32.3]} 28.
Qxf6 {[%clk 0:00:03.9]} 28... Qf7 {[%clk 0:01:30.3]} 29. Qxf7+ {[%clk
0:00:03.7]} 29... Kxf7 {[%clk 0:01:31.2]} 30. Nb5 {[%clk 0:00:03.6]} 30... a6
{[%clk 0:01:31.3]} 31. Nc3 {[%clk 0:00:03.1]} 31... Rxd6 {[%clk 0:01:31.7]} 32.
Rd1 {[%clk 0:00:04]} 32... Nd4 {[%clk 0:01:31.6]} 33. Kf2 {[%clk 0:00:03.8]}
33... Ng4+ {[%clk 0:01:31.4]} 34. Kg1 {[%clk 0:00:04.2]} 34... Ne3 {[%clk
0:01:31.3]} 35. Rde1 {[%clk 0:00:04.6]} 35... Nxf1 {[%clk 0:01:31.3]} 36. Kxf1
{[%clk 0:00:05.3]} 36... Re6 {[%clk 0:01:29.9]} 37. Rd1 {[%clk 0:00:05.4]} 37...
Nc2 {[%clk 0:01:29.9]} 38. Rd7+ {[%clk 0:00:05.4]} 38... Re7 {[%clk 0:01:30.6]}
39. Rd6 {[%clk 0:00:05.9]} 39... Ne3+ {[%clk 0:01:29]} 40. Kf2 {[%clk
0:00:05.5]} 40... Ng4+ {[%clk 0:01:29.6]} 41. Kf1 {[%clk 0:00:05.2]} 41... Nxh2+
{[%clk 0:01:29.8]} 42. Kf2 {[%clk 0:00:05.9]} 42... Ng4+ {[%clk 0:01:30.4]} 43.
Kf1 {[%clk 0:00:06.6]} 43... Ne3+ {[%clk 0:01:29.5]} 0-1

[Event "Late-Titled-Tuesday-Blitz-January-23-2024"]
[Site "Chess.com"]
[Date "2024.01.23"]
[Round "8"]
[White "TheAlienParty"]
[Black "DefiantChair"]
[Result "0-1"]
[WhiteElo "2376"]
[BlackElo "2597"]
[TimeControl "180+1"]
[EndTime "15:23:58 PST"]
[Termination "DefiantChair won by resignation"]

1. c4 {[%clk 0:02:58.1]} 1... e6 {[%clk 0:02:57]} 2. Nf3 {[%clk 0:02:56.6]} 2...
Nf6 {[%clk 0:02:57.5]} 3. e3 {[%clk 0:02:54.9]} 3... d5 {[%clk 0:02:58.4]} 4. b3
{[%clk 0:02:54.5]} 4... c5 {[%clk 0:02:58.6]} 5. Bb2 {[%clk 0:02:53.4]} 5... Nc6
{[%clk 0:02:58.4]} 6. cxd5 {[%clk 0:02:52.8]} 6... exd5 {[%clk 0:02:59]} 7. Be2
{[%clk 0:02:51.9]} 7... Bd6 {[%clk 0:02:55.7]} 8. O-O {[%clk 0:02:50.8]} 8...
O-O {[%clk 0:02:56.1]} 9. d4 {[%clk 0:02:50.3]} 9... cxd4 {[%clk 0:02:54.8]} 10.
Nxd4 {[%clk 0:02:49.2]} 10... Ne4 {[%clk 0:02:54.5]} 11. Nf3 {[%clk 0:02:34.5]}
11... Bg4 {[%clk 0:02:41.7]} 12. Nc3 {[%clk 0:02:32.3]} 12... Nf6 {[%clk
0:02:36.1]} 13. Nb5 {[%clk 0:02:26.9]} 13... Bb8 {[%clk 0:02:33.9]} 14. Rc1
{[%clk 0:02:12.5]} 14... a6 {[%clk 0:02:27.8]} 15. Nbd4 {[%clk 0:02:08]} 15...
Qd6 {[%clk 0:02:27.5]} 16. g3 {[%clk 0:02:00]} 16... Bh3 {[%clk 0:02:27.6]} 17.
Re1 {[%clk 0:01:58.8]} 17... Re8 {[%clk 0:02:18.5]} 18. Nxc6 {[%clk 0:01:57.1]}
18... bxc6 {[%clk 0:02:18]} 19. Qc2 {[%clk 0:01:56.9]} 19... Bd7 {[%clk
0:02:17.5]} 20. Bd4 {[%clk 0:01:53.7]} 20... Bc7 {[%clk 0:02:14.9]} 21. Red1
{[%clk 0:01:52]} 21... Ne4 {[%clk 0:02:08]} 22. Bd3 {[%clk 0:01:37.1]} 22... Bg4
{[%clk 0:02:04.8]} 23. Be2 {[%clk 0:01:14.7]} 23... Bd7 {[%clk 0:01:58.3]} 24.
Kg2 {[%clk 0:01:14.1]} 24... Qh6 {[%clk 0:01:53.8]} 25. Ng1 {[%clk 0:01:12.9]}
25... Nxf2 {[%clk 0:01:49.4]} 26. Bxa6 {[%clk 0:01:05.3]} 26... Ng4 {[%clk
0:01:44.9]} 27. Bb7 {[%clk 0:01:02]} 27... Rxa2 {[%clk 0:01:42.4]} 28. Qxa2
{[%clk 0:00:54.1]} 28... Qxh2+ {[%clk 0:01:41.8]} 29. Kf3 {[%clk 0:00:54.3]}
29... Qxa2 {[%clk 0:01:32.4]} 30. Ne2 {[%clk 0:00:51.4]} 30... Nh2+ {[%clk
0:01:24.3]} 31. Kf2 {[%clk 0:00:49]} 31... Bxg3+ {[%clk 0:01:18.1]} 32. Kxg3
{[%clk 0:00:48.5]} 32... Qxe2 {[%clk 0:01:17.8]} 33. Re1 {[%clk 0:00:47.2]}
33... Qf3+ {[%clk 0:01:17.7]} 34. Kxh2 {[%clk 0:00:46.4]} 34... Re6 {[%clk
0:01:18.3]} 0-1

[Event "Late-Titled-Tuesday-Blitz-January-23-2024"]
[Site "Chess.com"]
[Date "2024.01.23"]
[Round "8"]
[White "chessflav"]
[Black "ccccvhhhj"]
[Result "0-1"]
[WhiteElo "2289"]
[BlackElo "2477"]
[TimeControl "180+1"]
[EndTime "15:24:05 PST"]
[Termination "ccccvhhhj won on time"]

1. e4 {[%clk 0:01:11.1]} 1... e6 {[%clk 0:02:41.6]} 2. Nf3 {[%clk 0:01:11]} 2...
d5 {[%clk 0:02:42.5]} 3. e5 {[%clk 0:01:11.3]} 3... Bd7 {[%clk 0:02:42.5]} 4. a3
{[%clk 0:01:10.9]} 4... Ne7 {[%clk 0:02:42.1]} 5. d4 {[%clk 0:01:10.7]} 5... Nf5
{[%clk 0:02:41.2]} 6. b4 {[%clk 0:01:09.5]} 6... a5 {[%clk 0:02:41.1]} 7. b5
{[%clk 0:01:09.5]} 7... c5 {[%clk 0:02:40.8]} 8. bxc6 {[%clk 0:01:08]} 8... bxc6
{[%clk 0:02:38.8]} 9. c3 {[%clk 0:01:08.9]} 9... c5 {[%clk 0:02:38.6]} 10. Bd3
{[%clk 0:01:09.4]} 10... Nc6 {[%clk 0:02:31]} 11. Be3 {[%clk 0:01:07]} 11... Nh4
{[%clk 0:02:18.3]} 12. O-O {[%clk 0:01:05.1]} 12... c4 {[%clk 0:02:17.1]} 13.
Bc2 {[%clk 0:01:04.6]} 13... Be7 {[%clk 0:02:16.8]} 14. Nbd2 {[%clk 0:01:01.3]}
14... Rb8 {[%clk 0:02:11.4]} 15. Ne1 {[%clk 0:01:01.2]} 15... Bg5 {[%clk
0:01:58.2]} 16. Bxg5 {[%clk 0:00:50.6]} 16... Qxg5 {[%clk 0:01:58]} 17. g3
{[%clk 0:00:51.2]} 17... Ng6 {[%clk 0:01:56.2]} 18. f4 {[%clk 0:00:50.5]} 18...
Qe7 {[%clk 0:01:55.8]} 19. Ndf3 {[%clk 0:00:43.7]} 19... Rb2 {[%clk 0:01:50.3]}
20. Rb1 {[%clk 0:00:41.6]} 20... Rxb1 {[%clk 0:01:50.4]} 21. Qxb1 {[%clk
0:00:41.6]} 21... O-O {[%clk 0:01:49.9]} 22. h4 {[%clk 0:00:36.2]} 22... Rb8
{[%clk 0:01:48.2]} 23. Qd1 {[%clk 0:00:35.9]} 23... Nf8 {[%clk 0:01:48.6]} 24.
Ng2 {[%clk 0:00:17.4]} 24... f5 {[%clk 0:01:49]} 25. exf6 {[%clk 0:00:16.7]}
25... Qxf6 {[%clk 0:01:49.4]} 26. Ng5 {[%clk 0:00:13.6]} 26... h6 {[%clk
0:01:48.5]} 27. Nf3 {[%clk 0:00:13.4]} 27... Be8 {[%clk 0:01:42.6]} 28. Ne3
{[%clk 0:00:13.4]} 28... Bg6 {[%clk 0:01:42.8]} 29. Ng4 {[%clk 0:00:13.8]} 29...
Qe7 {[%clk 0:01:32.2]} 30. Re1 {[%clk 0:00:13.7]} 30... Bxc2 {[%clk 0:01:29.1]}
31. Qxc2 {[%clk 0:00:13.8]} 31... Qxa3 {[%clk 0:01:30]} 32. f5 {[%clk
0:00:11.6]} 32... Rb2 {[%clk 0:01:24.7]} 33. Qd1 {[%clk 0:00:10.6]} 33... exf5
{[%clk 0:01:23.6]} 34. Nge5 {[%clk 0:00:09.1]} 34... Nxe5 {[%clk 0:01:24]} 35.
Nxe5 {[%clk 0:00:10]} 35... Qxc3 {[%clk 0:01:22.3]} 36. Rf1 {[%clk 0:00:09.7]}
36... Qxg3+ {[%clk 0:01:22.2]} 0-1

[Event "Late-Titled-Tuesday-Blitz-January-23-2024"]
[Site "Chess.com"]
[Date "2024.01.23"]
[Round "8"]
[White "Rikikits"]
[Black "Doomfist26"]
[Result "1-0"]
[WhiteElo "2835"]
[BlackElo "2624"]
[TimeControl "180+1"]
[EndTime "15:24:08 PST"]
[Termination "Rikikits won by resignation"]

1. d4 {[%clk 0:03:00.9]} 1... Nf6 {[%clk 0:02:57.7]} 2. c4 {[%clk 0:02:59]} 2...
g6 {[%clk 0:02:58.1]} 3. Nf3 {[%clk 0:02:56.5]} 3... Bg7 {[%clk 0:02:53.5]} 4.
e3 {[%clk 0:02:56.8]} 4... O-O {[%clk 0:02:52.9]} 5. Be2 {[%clk 0:02:57.3]} 5...
d6 {[%clk 0:02:53.1]} 6. O-O {[%clk 0:02:57.9]} 6... b6 {[%clk 0:02:53.8]} 7.
Nc3 {[%clk 0:02:56.4]} 7... Bb7 {[%clk 0:02:54.2]} 8. b3 {[%clk 0:02:53.2]} 8...
Nbd7 {[%clk 0:02:44.4]} 9. Bb2 {[%clk 0:02:53.5]} 9... e6 {[%clk 0:02:36.7]} 10.
a4 {[%clk 0:02:53.5]} 10... a5 {[%clk 0:02:32.2]} 11. Qc2 {[%clk 0:02:53.4]}
11... Qe7 {[%clk 0:02:32.4]} 12. e4 {[%clk 0:02:49.9]} 12... Rfd8 {[%clk
0:02:27.1]} 13. Rfe1 {[%clk 0:02:48.1]} 13... e5 {[%clk 0:02:25.4]} 14. Nd5
{[%clk 0:02:36.8]} 14... Nxd5 {[%clk 0:02:12.7]} 15. cxd5 {[%clk 0:02:37.7]}
15... Rac8 {[%clk 0:01:59.7]} 16. Bb5 {[%clk 0:02:35.6]} 16... exd4 {[%clk
0:01:56.1]} 17. Nxd4 {[%clk 0:02:35]} 17... Nc5 {[%clk 0:01:55.1]} 18. Re3
{[%clk 0:02:20.6]} 18... Rf8 {[%clk 0:01:44.2]} 19. Rae1 {[%clk 0:02:19.1]}
19... Be5 {[%clk 0:01:30.3]} 20. g3 {[%clk 0:02:05.3]} 20... Bg7 {[%clk
0:01:20.5]} 21. f4 {[%clk 0:01:48.3]} 21... h5 {[%clk 0:01:02.6]} 22. Nc6 {[%clk
0:01:44]} 22... Bxc6 {[%clk 0:01:00.4]} 23. Bxc6 {[%clk 0:01:44.9]} 23... Bxb2
{[%clk 0:00:53.5]} 24. Qxb2 {[%clk 0:01:45.8]} 24... h4 {[%clk 0:00:53.8]} 25.
Kg2 {[%clk 0:01:41]} 25... f6 {[%clk 0:00:48.6]} 26. gxh4 {[%clk 0:01:33.4]}
26... Qh7 {[%clk 0:00:48.7]} 27. Rg3 {[%clk 0:01:28.8]} 27... Kf7 {[%clk
0:00:46.8]} 28. e5 {[%clk 0:01:24.9]} 28... Qxh4 {[%clk 0:00:39.6]} 29. exd6
{[%clk 0:01:15.2]} 29... cxd6 {[%clk 0:00:36.3]} 30. Qe2 {[%clk 0:01:13.6]}
30... Kg7 {[%clk 0:00:31.3]} 31. Qe7+ {[%clk 0:01:02.9]} 31... Rf7 {[%clk
0:00:31.3]} 32. Qxd6 {[%clk 0:01:02.9]} 32... Rh8 {[%clk 0:00:28.5]} 33. h3
{[%clk 0:01:01.2]} 33... Nd3 {[%clk 0:00:22.4]} 34. Re4 {[%clk 0:00:53.4]} 34...
f5 {[%clk 0:00:19]} 35. Qxg6+ {[%clk 0:00:51.1]} 1-0